bitfinex/quotes_SOLUSD_20241115
["timestamp","ask_amount","ask_price","bid_price","bid_amount"]
[1731689522220,6.2758,209.69,209.66,21.8842357]
[1731689522403,6.2758,209.69,209.64,21.8842357]
[1731689522713,6.2758,209.69,209.58,21.8842357]
[1731689522714,0.09367462,209.68,209.58,21.8842357]
[1731689523012,0.09367462,209.68,209.52,23.776884]
[1731689523013,0.09367462,209.68,209.61,21.8842357]
[1731689523398,20.09367462,209.68,209.62,21.8842357]
[1731689523696,0.09367462,209.66,209.62,21.8842357]
[1731689524292,0.09367462,209.66,209.6,21.8842357]
[1731689524692,0.09367462,209.66,209.62,21.8842357]
[1731689524895,4.2924,209.68,209.58,16.6994]
[1731689524896,20.0,209.68,209.64,21.8842357]
[1731689525084,10.5678,209.69,209.63,21.8842357]
[1731689525700,0.09367462,209.68,209.65,21.8842357]
[1731689526095,0.34465462,209.69,209.64,21.8842357]
[1731689526992,0.34465462,209.69,209.6,21.8842357]
[1731689527197,0.34465462,209.69,209.55,40.563]
[1731689527198,0.34465462,209.69,209.59,21.8842357]
[1731689527690,0.09367462,209.67,209.59,21.8842357]
[1731689527887,0.34465462,209.67,209.59,21.8842357]
[1731689528109,0.34465462,209.67,209.6,21.8842357]
[1731689528596,0.34465462,209.67,209.61,21.8842357]
[1731689528801,0.34465462,209.67,209.64,21.8842357]
[1731689529009,0.12549,209.68,209.65,21.8842357]
[1731689529308,0.09367462,209.69,209.64,21.8842357]
[1731689530409,0.09367462,209.67,209.64,21.8842357]
[1731689531193,0.25098,209.68,209.64,21.8842357]
[1731689532113,0.25098,209.68,209.62,4.7704]
[1731689532114,4.38617462,209.67,209.62,21.8842357]
[1731689532314,0.09367462,209.65,209.6,21.8842357]
[1731689532523,0.09367462,209.65,209.59,21.8842357]
[1731689532712,0.09367462,209.65,209.56,21.8842357]
[1731689532903,6.73937462,209.63,209.53,21.8842357]
[1731689533109,0.21916462,209.59,209.52,26.6568357]
[1731689533408,0.09367462,209.57,209.54,21.8842357]
[1731689533608,0.21916462,209.57,209.53,21.8842357]
[1731689533817,0.21916462,209.55,209.51,21.8842357]
[1731689534011,0.12549,209.54,209.51,21.8842357]
[1731689534217,0.25098,209.54,209.52,21.8842357]
[1731689534396,0.09367462,209.53,209.52,21.8842357]
[1731689534714,0.12549,209.53,209.49,21.8842357]
[1731689534961,0.1,209.61,209.51,21.8842357]
[1731689535100,0.12549,209.61,209.57,21.8842357]
[1731689536012,0.09367462,209.6,209.58,21.8842357]
[1731689536395,0.21916462,209.6,209.55,33.8144357]
[1731689536712,4.51316462,209.6,209.53,21.8842357]
[1731689536909,0.12549,209.59,209.57,21.8842357]
[1731689537118,6.022,209.68,209.58,21.8842357]
[1731689537504,0.09367462,209.67,209.56,21.8842357]
[1731689537706,0.09367462,209.67,209.58,21.8842357]
[1731689537903,0.09367462,209.67,209.61,21.8842357]
[1731689538101,0.09367462,209.67,209.6,21.8842357]
[1731689538296,0.09367462,209.65,209.6,21.8842357]
[1731689538500,0.09367462,209.65,209.59,21.8842357]
[1731689539122,0.34465462,209.65,209.56,33.8137357]
[1731689539423,0.34465462,209.65,209.56,11.9295]
[1731689539813,0.34465462,209.65,209.58,21.8842357]
[1731689540007,0.34465462,209.65,209.59,21.8842357]
[1731689540224,0.34465462,209.65,209.61,21.8842357]
[1731689540403,0.25098,209.66,209.62,21.8842357]
[1731689541437,20.5416,209.7,209.64,21.8842357]
[1731689541617,4.292,209.7,209.64,21.8842357]
[1731689541809,4.2915,209.72,209.66,21.8842357]
[1731689542006,6.022,209.73,209.69,21.8842357]
[1731689542410,10.312,209.79,209.7,21.8842357]
[1731689542720,0.09367462,209.78,209.7,21.8842357]
[1731689543215,10.312,209.79,209.69,21.8842357]
[1731689543406,0.09367462,209.78,209.7,21.8842357]
[1731689543735,0.25098,209.78,209.69,21.8842357]
[1731689544031,0.09367462,209.77,209.69,21.8842357]
[1731689544227,0.12549,209.76,209.69,21.8842357]
[1731689544421,0.25098,209.74,209.69,21.8842357]
[1731689545108,0.21916462,209.73,209.69,21.8842357]
[1731689545419,0.25098,209.72,209.69,21.8842357]
[1731689546131,0.25098,209.72,209.71,21.8842357]
[1731689546534,0.25098,209.72,209.67,33.8076357]
[1731689546832,0.21916462,209.67,209.6,21.8842357]
[1731689547136,0.21916462,209.67,209.54,6.5007]
[1731689547137,0.12549,209.6,209.54,38.5872357]
[1731689547428,0.25098,209.6,209.55,21.8842357]
[1731689547617,0.25098,209.6,209.56,21.8842357]
[1731689547810,20.0,209.67,209.59,21.8842357]
[1731689548025,0.25098,209.67,209.62,21.8842357]
[1731689548218,20.25098,209.67,209.6,21.8842357]
[1731689548422,20.25098,209.67,209.62,21.8842357]
[1731689548635,0.25098,209.67,209.63,21.8842357]
[1731689548813,0.12549,209.69,209.65,21.8842357]
[1731689549132,0.25098,209.71,209.65,21.8842357]
[1731689549740,0.12549,209.69,209.66,21.8842357]
[1731689550324,7.44581089,209.81,209.69,23.776884]
[1731689550633,6.0208,209.83,209.75,21.8842357]
[1731689550930,0.09367462,209.82,209.75,21.8842357]
[1731689551334,4.2897,209.81,209.76,21.8842357]
[1731689551635,0.25098,209.8,209.77,21.8842357]
[1731689552017,6.0208,209.83,209.79,21.8842357]
[1731689552233,0.4811857,209.84,209.8,21.8842357]
[1731689554421,0.4811857,209.84,209.81,21.8842357]
[1731689555031,0.25098,209.83,209.82,21.8842357]
[1731689555340,0.12549,209.83,209.82,21.8842357]
[1731689555514,0.4811857,209.84,209.82,21.8842357]
[1731689556029,0.4811857,209.84,209.83,21.8842357]
[1731689556209,0.4811857,209.84,209.82,21.8842357]
[1731689557232,0.6066757,209.84,209.83,21.8842357]
[1731689557918,0.6066757,209.84,209.81,21.8842357]
[1731689558139,0.4811857,209.84,209.83,21.8842357]
[1731689558313,0.4811857,209.84,209.83,45.6611197]
[1731689558931,16.6537,209.98,209.83,45.6611197]
[1731689558932,4.2862,209.98,209.84,23.876884]
[1731689559124,4.2862,209.98,209.93,21.8842357]
[1731689559434,0.09367462,209.97,209.92,21.8842357]
[1731689559621,4.2862,209.98,209.9,21.8842357]
[1731689560134,0.09367462,209.97,209.91,21.8842357]
[1731689560931,0.25098,209.99,209.93,21.8842357]
[1731689561243,0.12549,209.99,209.94,21.8842357]
[1731689561413,2.99,210.0,209.95,21.8842357]
[1731689561618,2.99,210.0,209.93,21.8842357]
[1731689561821,0.09367462,209.99,209.88,11.9115]
[1731689562018,0.09367462,209.99,209.86,21.8842357]
[1731689562435,0.09367462,209.99,209.87,21.8842357]
[1731689562620,20.09367462,209.99,209.87,21.8842357]
[1731689562818,0.09367462,209.97,209.85,21.8842357]
[1731689563026,0.09367462,209.97,209.87,21.8842357]
[1731689563432,0.34465462,209.95,209.86,21.8842357]
[1731689564027,0.34465462,209.95,209.83,21.8842357]
[1731689564341,0.25098,209.95,209.84,21.8842357]
[1731689564521,0.25098,209.95,209.87,21.8842357]
[1731689565034,0.34465462,209.94,209.87,21.8842357]
[1731689565243,0.34465462,209.94,209.85,21.8842357]
[1731689565539,4.63165462,209.94,209.85,21.8842357]
[1731689565845,4.63165462,209.94,209.84,11.9137]
[1731689566338,4.63165462,209.94,209.84,33.7979357]
[1731689566640,4.63165462,209.94,209.81,26.6503357]
[1731689566847,0.09367462,209.9,209.8,21.8842357]
[1731689567138,0.09367462,209.9,209.82,21.8842357]
[1731689567338,0.09367462,209.9,209.8,21.8842357]
[1731689567528,0.21916462,209.86,209.8,26.6505357]
[1731689567731,0.25098,209.85,209.81,21.8842357]
[1731689568240,0.12549,209.83,209.79,33.8003357]
[1731689568431,0.12549,209.83,209.8,21.8842357]
[1731689569031,0.12549,209.83,209.82,21.8842357]
[1731689570022,0.12549,209.83,209.8,21.8842357]
[1731689570222,0.09367462,209.84,209.8,21.8842357]
[1731689570430,0.12549,209.83,209.8,21.8842357]
[1731689570643,0.12549,209.81,209.79,33.8003357]
[1731689570833,0.25098,209.81,209.79,33.8003357]
[1731689571030,0.12549,209.81,209.8,21.8842357]
[1731689571624,4.63898,209.89,209.8,21.8842357]
[1731689571922,0.09367462,209.86,209.81,21.8842357]
[1731689572134,0.21916462,209.86,209.81,21.8842357]
[1731689572428,0.12549,209.85,209.82,21.8842357]
[1731689572631,0.09367462,209.84,209.8,11.9161]
[1731689572826,0.21916462,209.82,209.74,21.8842357]
[1731689573138,4.2886,209.86,209.71,16.6896]
[1731689573139,0.12549,209.77,209.73,21.8842357]
[1731689573327,0.25098,209.77,209.74,21.8842357]
[1731689573520,0.25098,209.77,209.71,16.6896]
[1731689573521,0.12549,209.77,209.76,21.8842357]
[1731689573750,0.25098,209.84,209.76,21.8842357]
[1731689574045,0.21916462,209.83,209.78,21.8842357]
[1731689574347,20.0,209.85,209.81,21.8842357]
[1731689574529,20.0,209.85,209.75,11.9183]
[1731689574530,20.0,209.85,209.8,21.8842357]
[1731689574843,0.09367462,209.84,209.83,21.8842357]
[1731689575052,0.1,209.9,209.83,21.8842357]
[1731689575233,4.2875,209.91,209.86,21.8842357]
[1731689575925,22.3771,209.92,209.86,21.8842357]
[1731689576223,6.098,209.92,209.9,21.8842357]
[1731689576421,4.2865,209.96,209.9,21.8842357]
[1731689576630,0.09367462,209.95,209.9,21.8842357]
[1731689577557,22.5279,209.97,209.9,4.764]
[1731689577722,7.2758,210.0,209.95,21.8842357]
[1731689577928,2.99,210.0,209.94,21.8842357]
[1731689578431,2.99,210.0,209.95,21.8842357]
[1731689578825,2.99,210.0,209.94,21.8842357]
[1731689579032,0.09367462,209.99,209.93,21.8842357]
[1731689579240,0.09367462,209.99,209.94,21.8842357]
[1731689579755,2.99,210.0,209.95,21.8842357]
[1731689579968,2.99,210.0,209.94,21.8842357]
[1731689580138,0.09367462,209.98,209.93,33.7929357]
[1731689580442,0.09367462,209.98,209.94,21.8842357]
[1731689580649,2.99,210.0,209.97,21.8842357]
[1731689580825,20.0,209.99,209.95,21.8842357]
[1731689581233,7.2757,210.0,209.93,16.6721]
[1731689581234,2.99,210.0,209.98,21.8842357]
[1731689581425,2.99,210.0,209.95,21.8842357]
[1731689581640,0.09367462,209.99,209.94,21.8842357]
[1731689582046,4.37967462,209.99,209.94,21.8842357]
[1731689582236,4.37967462,209.99,209.92,21.8842357]
[1731689582237,24.37967462,209.99,209.92,21.8842357]
[1731689582439,0.09367462,209.97,209.93,21.8842357]
[1731689582647,0.12549,209.96,209.94,21.8842357]
[1731689582825,0.34465462,209.96,209.95,21.8842357]
[1731689583027,0.12549,209.96,209.95,21.8842357]
[1731689583253,0.12549,209.96,209.94,21.8842357]
[1731689583547,0.09367462,209.97,209.94,21.8842357]
[1731689583945,0.09367462,209.97,209.95,21.8842357]
[1731689584140,0.12549,209.99,209.96,21.8842357]
[1731689584357,0.12549,209.99,209.98,21.8842357]
[1731689584858,2.99,210.0,209.98,21.8842357]
[1731689585047,6.7995,210.0,209.95,21.8842357]
[1731689585235,6.7995,210.0,209.93,21.8842357]
[1731689585236,0.09367462,209.99,209.93,21.8842357]
[1731689585646,2.99,210.0,209.98,21.8842357]
[1731689585947,2.99,210.0,209.97,21.8842357]
[1731689586549,0.12549,209.99,209.97,21.8842357]
[1731689586744,0.12549,209.99,209.93,21.8842357]
[1731689587045,0.12549,209.99,209.95,21.8842357]
[1731689587250,0.12549,209.99,209.96,21.8842357]
[1731689587754,2.99,210.0,209.98,21.8842357]
[1731689587932,2.99,210.0,209.99,21.8842357]
[1731689588752,2.99,210.0,209.99,14.96343568]
[1731689588954,2.99,210.0,209.99,19.72553568]
[1731689589452,2.99,210.0,209.99,43.50241968]
[1731689589630,2.99,210.0,209.99,58.46585536]
[1731689590551,2.99,210.0,209.99,28.538984]
[1731689590850,2.99,210.0,209.99,58.46585536]
[1731689592138,2.99,210.0,209.99,28.538984]
[1731689592458,2.99,210.0,209.99,19.72553568]
[1731689593038,2.99,210.0,209.99,28.70411737]
[1731689594833,2.99,210.0,209.99,23.94201737]
[1731689595036,0.12549,209.99,209.97,23.94201737]
[1731689596557,2.99,210.0,209.98,23.94201737]
[1731689596744,2.99,210.0,209.99,23.94201737]
[1731689597263,0.12549,209.99,209.97,11.9064]
[1731689597437,0.12549,209.99,209.97,35.84841737]
[1731689597634,0.25098,209.99,209.94,23.94201737]
[1731689597952,0.12549,209.97,209.92,40.61441737]
[1731689598136,2.99,210.0,209.96,23.94201737]
[1731689598337,2.99,210.0,209.99,23.94201737]
[1731689598338,3.11549,210.0,209.99,23.94201737]
[1731689599462,0.4811857,210.05,210.0,40.443484]
[1731689599669,0.4811857,210.05,210.04,47.71890137]
[1731689599977,0.4811857,210.05,210.04,23.94201737]
[1731689601843,0.4811857,210.05,210.0,11.9047]
[1731689602061,0.12549,210.04,210.0,11.9047]
[1731689602454,0.12549,210.04,210.0,35.84671737]
[1731689602657,0.12549,210.04,210.0,11.9047]
[1731689603552,0.12549,210.04,210.0,35.84671737]
[1731689604157,0.12549,210.04,210.0,11.9047]
[1731689604354,0.09367462,210.03,210.0,11.9047]
[1731689605064,0.09367462,210.03,210.0,35.84671737]
[1731689605280,0.12549,210.04,210.0,35.84671737]
[1731689605281,0.4811857,210.05,210.03,23.776884]
[1731689605570,0.4811857,210.05,210.04,47.71890137]
[1731689606143,0.4811857,210.05,210.04,52.47980137]
[1731689606348,0.4811857,210.05,210.04,72.47980137]
[1731689610773,0.4811857,210.05,210.04,48.70291737]
[1731689611873,1e-08,210.05,210.04,72.57980137]
[1731689612178,6.4909,210.21,210.08,0.1]
[1731689612356,6.4909,210.21,210.18,23.94201737]
[1731689612555,10.7768857,210.26,210.19,23.94201737]
[1731689612981,0.09367462,210.25,210.19,23.94201737]
[1731689613474,0.09367462,210.25,210.18,23.94201737]
[1731689613984,0.09367462,210.25,210.1,24.04201737]
[1731689613985,0.25098,210.22,210.16,28.70001737]
[1731689614170,0.12549,210.2,210.15,35.83801737]
[1731689615078,0.12549,210.2,210.16,23.94201737]
[1731689615483,0.12549,210.23,210.16,23.94201737]
[1731689615777,0.25098,210.23,210.16,23.94201737]
[1731689616080,0.12549,210.21,210.13,23.94201737]
[1731689616259,0.12549,210.21,210.11,16.6579]
[1731689616260,0.12549,210.21,210.11,40.59991737]
[1731689616466,0.12549,210.21,210.12,23.94201737]
[1731689616978,0.12549,210.2,210.08,23.94201737]
[1731689617184,0.09367462,210.19,210.08,23.94201737]
[1731689617393,26.98995462,210.17,210.06,35.84281737]
[1731689617681,26.98995462,210.17,210.06,11.9008]
[1731689618082,0.09367462,210.15,210.06,40.60331737]
[1731689618382,0.34465462,210.15,210.06,40.60331737]
[1731689618961,0.34465462,210.15,210.06,11.9008]
[1731689619164,0.09367462,210.13,210.02,35.84551737]
[1731689619359,0.34465462,210.13,210.02,11.9035]
[1731689619578,0.34465462,210.11,209.99,4.7619]
[1731689619783,20.34465462,210.11,209.98,35.84771737]
[1731689619969,23.876884,210.12,209.95,4.7629]
[1731689619970,35.37815462,210.07,209.95,4.7629]
[1731689620170,0.09367462,210.02,209.93,11.9082]
[1731689620371,0.09367462,210.02,209.9,23.94201737]
[1731689620689,20.0,210.0,209.89,16.6754]
[1731689620989,0.25098,209.99,209.9,23.94201737]
[1731689621176,0.25098,209.99,209.91,23.94201737]
[1731689621585,0.25098,209.99,209.9,23.94201737]
[1731689621768,0.25098,209.97,209.9,23.94201737]
[1731689622082,0.12549,209.92,209.85,42.99478937]
[1731689622263,0.12549,209.91,209.86,23.94201737]
[1731689622865,0.09367462,209.91,209.85,23.94201737]
[1731689623092,0.09367462,209.91,209.84,40.62121737]
[1731689623093,0.21916462,209.91,209.84,40.62121737]
[1731689623279,0.25098,209.9,209.84,16.6792]
[1731689623464,20.0,209.95,209.86,23.94201737]
[1731689623668,0.25098,209.94,209.88,23.94201737]
[1731689623869,0.25098,209.94,209.87,28.70671737]
[1731689623870,0.09367462,209.93,209.87,28.70671737]
[1731689624367,0.25098,209.95,209.88,23.94201737]
[1731689624568,0.25098,209.97,209.88,23.94201737]
[1731689624781,0.09367462,209.96,209.88,23.94201737]
[1731689625022,0.09367462,209.96,209.87,40.61881737]
[1731689625170,0.09367462,209.96,209.87,16.6769]
[1731689625363,4.06108,209.97,209.89,23.94201737]
[1731689625568,4.06108,209.97,209.88,23.94201737]
[1731689625901,0.09367462,209.96,209.87,11.9121]
[1731689626467,0.09367462,209.96,209.88,23.94201737]
[1731689626787,4.06108,209.97,209.87,40.61891737]
[1731689627286,0.09367462,209.96,209.88,23.94201737]
[1731689627679,0.34465462,209.94,209.88,23.94201737]
[1731689628187,0.25098,209.94,209.88,23.94201737]
[1731689628392,0.25098,209.96,209.89,23.94201737]
[1731689628570,0.09367462,209.95,209.89,23.94201737]
[1731689630574,0.09367462,209.95,209.88,40.61801737]
[1731689631292,0.09367462,209.95,209.89,23.94201737]
[1731689631593,0.09367462,209.95,209.9,23.94201737]
[1731689632578,23.8096,210.0,209.92,23.94201737]
[1731689633394,0.09367462,209.99,209.92,23.94201737]
[1731689633897,0.25098,209.98,209.92,23.94201737]
[1731689634278,0.09367462,209.93,209.84,23.94201737]
[1731689634580,3.8097,209.99,209.8,36.6825]
[1731689634581,0.12549,209.9,209.82,23.94201737]
[1731689634790,0.12549,209.9,209.83,13.62609167]
[1731689635303,0.12549,209.9,209.84,13.62609167]
[1731689635474,0.12549,209.9,209.83,13.62609167]
[1731689635674,0.12549,209.9,209.84,13.62609167]
[1731689636496,3.81,209.97,209.85,30.30439167]
[1731689636697,0.25098,209.96,209.87,13.62609167]
[1731689637001,0.25098,209.96,209.86,21.79280384]
[1731689637181,0.09367462,209.95,209.85,38.47110384]
[1731689637378,0.12549,209.94,209.82,21.79280384]
[1731689637696,0.12549,209.94,209.78,21.79280384]
[1731689637697,20.34465462,209.91,209.78,21.79280384]
[1731689637994,20.34465462,209.89,209.78,4.7667]
[1731689638197,20.34465462,209.89,209.79,21.79280384]
[1731689638380,0.34465462,209.89,209.81,21.79280384]
[1731689639193,0.12549,209.89,209.84,21.79280384]
[1731689639400,0.12549,209.9,209.83,21.79280384]
[1731689639594,0.12549,209.9,209.84,21.79280384]
[1731689639793,23.8111,209.91,209.84,21.79280384]
[1731689640298,20.0,209.91,209.84,21.79280384]
[1731689640480,23.8112,209.91,209.84,21.79280384]
[1731689640982,6.3566,209.92,209.86,21.79280384]
[1731689641185,10.4217,209.97,209.89,21.79280384]
[1731689641402,10.4217,209.97,209.91,21.79280384]
[1731689641794,0.09367462,209.96,209.89,21.79280384]
[1731689642180,0.09367462,209.96,209.9,21.79280384]
[1731689642381,0.09367462,209.96,209.9,26.55690384]
[1731689642592,0.09367462,209.96,209.9,4.7641]
[1731689642897,23.90387462,209.96,209.88,11.9115]
[1731689643605,0.09367462,209.94,209.88,11.9115]
[1731689644284,0.09367462,209.92,209.83,21.79280384]
[1731689644480,20.09367462,209.92,209.78,21.79280384]
[1731689644706,0.09367462,209.9,209.78,21.79280384]
[1731689645089,0.09367462,209.9,209.74,6.5444]
[1731689645288,0.09367462,209.9,209.77,38.47730384]
[1731689645475,3.8115,209.89,209.79,26.55940384]
[1731689645676,0.12549,209.88,209.83,21.79280384]
[1731689645901,3.8111,209.91,209.84,21.79280384]
[1731689646109,0.09367462,209.93,209.85,21.79280384]
[1731689646511,0.09367462,209.93,209.83,21.79280384]
[1731689646690,0.09367462,209.93,209.8,23.776884]
[1731689646691,0.09367462,209.93,209.81,21.79280384]
[1731689647523,0.09367462,209.91,209.79,33.70940384]
[1731689647702,0.09367462,209.89,209.79,11.9166]
[1731689648283,0.09367462,209.89,209.79,16.6832]
[1731689648485,0.09367462,209.89,209.83,21.79280384]
[1731689648684,3.9111,209.92,209.85,21.79280384]
[1731689648903,3.8111,209.92,209.84,21.79280384]
[1731689649111,0.09367462,209.91,209.8,23.776884]
[1731689649403,0.09367462,209.91,209.84,21.79280384]
[1731689649608,0.09367462,209.9,209.83,33.70710384]
[1731689649798,0.09367462,209.9,209.83,11.9143]
[1731689650014,0.34465462,209.9,209.83,11.9143]
[1731689650385,0.34465462,209.9,209.83,38.47280384]
[1731689650582,3.8102,209.96,209.89,21.79280384]
[1731689650811,10.4217,209.97,209.9,21.79280384]
[1731689650983,10.4217,209.97,209.84,23.776884]
[1731689650984,10.4217,209.97,209.91,21.79280384]
[1731689651190,0.09367462,209.96,209.91,21.79280384]
[1731689651385,0.09367462,209.96,209.9,21.79280384]
[1731689651999,0.12549,209.95,209.9,26.55680384]
[1731689652507,0.21916462,209.96,209.91,21.79280384]
[1731689652886,0.21916462,209.96,209.9,21.79280384]
[1731689653093,0.25098,209.96,209.89,21.79280384]
[1731689653607,24.06128,209.96,209.89,21.79280384]
[1731689654793,24.06128,209.96,209.9,26.55690384]
[1731689655387,6.6117,209.97,209.92,21.79280384]
[1731689655592,6.6117,209.97,209.91,21.79280384]
[1731689655987,6.1201,210.02,209.93,21.79280384]
[1731689656182,6.1201,210.02,209.9,4.7641]
[1731689656183,6.1201,210.02,209.95,21.79280384]
[1731689656383,6.1201,210.07,209.96,21.79280384]
[1731689656600,0.09367462,210.06,209.96,21.79280384]
[1731689656807,0.09367462,210.04,209.95,21.79280384]
[1731689657188,0.09367462,210.04,209.94,16.6713]
[1731689657189,3.8086,210.05,209.94,16.6713]
[1731689657608,3.8086,210.05,209.96,21.79280384]
[1731689657812,0.09367462,210.04,209.94,11.9081]
[1731689658017,0.09367462,210.04,209.9,26.55670384]
[1731689658312,0.19367462,210.04,209.9,38.46710384]
[1731689658492,20.19367462,210.04,209.9,38.46710384]
[1731689658889,0.09367462,210.01,209.9,16.6743]
[1731689659102,0.34465462,209.99,209.9,16.6743]
[1731689659300,0.34465462,209.99,209.9,38.46710384]
[1731689659610,0.34465462,209.99,209.91,21.79280384]
[1731689659792,4.15445462,209.99,209.9,38.46710384]
[1731689660113,4.15445462,209.99,209.9,11.9104]
[1731689660313,20.34465462,209.97,209.9,16.6745]
[1731689660489,0.34465462,209.97,209.9,16.6745]
[1731689660689,20.34465462,209.97,209.91,21.79280384]
[1731689660986,20.34465462,209.97,209.9,16.6745]
[1731689661401,6.5078,210.03,209.91,45.56968784]
[1731689661584,23.8093,210.02,209.9,38.46730384]
[1731689661796,0.09367462,210.01,209.9,38.46730384]
[1731689662113,0.09367462,210.01,209.91,21.79280384]
[1731689662609,0.09367462,209.99,209.91,26.55660384]
[1731689662919,0.34465462,209.99,209.91,26.55660384]
[1731689663213,0.25098,209.99,209.91,38.46640384]
[1731689663385,6.5078,210.03,209.96,21.79280384]
[1731689663785,10.3168,210.03,209.94,21.79280384]
[1731689664196,6.5078,210.03,209.96,21.79280384]
[1731689664396,6.5078,210.03,209.92,23.776884]
[1731689664397,3.8083,210.07,209.98,21.79280384]
[1731689664590,3.8083,210.07,209.99,4.7621]
[1731689664997,0.09367462,210.06,209.99,4.7621]
[1731689665192,10.4733,210.08,210.0,14.96681955]
[1731689665798,6.6653,210.08,210.02,14.96681955]
[1731689666001,3.8074,210.12,210.04,14.96681955]
[1731689666202,3.8074,210.12,210.05,14.96681955]
[1731689666513,9.6157,210.18,209.99,31.63421955]
[1731689666514,7.45340499,210.17,210.09,14.96681955]
[1731689666684,9.8306,210.18,210.1,14.96681955]
[1731689666889,9.8306,210.18,210.09,23.9192564]
[1731689667810,20.0,210.17,210.1,4.7596]
[1731689668316,20.0,210.17,210.1,28.6788564]
[1731689668698,9.8306,210.18,210.1,28.6788564]
[1731689668699,6.0243,210.18,210.1,40.5778564]
[1731689668902,9.8306,210.18,210.1,40.5778564]
[1731689669102,0.25098,210.17,210.1,40.5778564]
[1731689670117,0.25098,210.17,210.11,23.9192564]
[1731689670332,0.1,210.24,210.11,23.9192564]
[1731689670333,16.0587857,210.26,210.16,23.9192564]
[1731689670519,16.0587857,210.26,210.13,15.4697]
[1731689670520,19.8636857,210.26,210.19,23.9192564]
[1731689670697,19.8636857,210.26,210.18,23.9192564]
[1731689671413,19.8636857,210.26,210.15,23.9192564]
[1731689671615,20.09367462,210.25,210.15,23.9192564]
[1731689671823,20.09367462,210.25,210.14,23.9192564]
[1731689672624,0.09367462,210.21,210.14,23.9192564]
[1731689672820,0.25098,210.2,210.14,28.6778564]
[1731689673203,0.12549,210.24,210.18,23.9192564]
[1731689673404,16.0587857,210.26,210.19,23.9192564]
[1731689673622,19.8635857,210.26,210.16,23.9192564]
[1731689673835,0.09367462,210.25,210.16,23.9192564]
[1731689674120,0.09367462,210.25,210.18,23.9192564]
[1731689674932,3.8051,210.24,210.16,28.6773564]
[1731689675223,0.09367462,210.23,210.15,23.9192564]
[1731689675432,0.09367462,210.23,210.14,16.6554]
[1731689675821,0.21916462,210.21,210.15,23.9192564]
[1731689676030,0.12549,210.2,210.15,23.9192564]
[1731689678209,0.12549,210.2,210.17,23.9192564]
[1731689679225,0.12549,210.2,210.16,23.9192564]
[1731689679527,0.34465462,210.22,210.16,23.9192564]
[1731689679823,0.34465462,210.22,210.17,23.9192564]
[1731689680012,0.12549,210.24,210.18,23.9192564]
[1731689680605,0.12549,210.24,210.17,23.9192564]
[1731689681736,0.25098,210.24,210.18,28.6768564]
[1731689682028,0.25098,210.25,210.2,23.9192564]
[1731689682237,0.4811857,210.26,210.18,16.6521]
[1731689682238,0.4811857,210.26,210.23,23.9192564]
[1731689682526,0.4811857,210.26,210.18,40.5713564]
[1731689682716,4.2859857,210.26,210.19,2.75]
[1731689682916,4.2859857,210.26,210.19,26.6692564]
[1731689683104,0.4811857,210.26,210.19,26.6692564]
[1731689683432,0.12549,210.25,210.2,23.9192564]
[1731689683818,0.25098,210.25,210.2,28.6765564]
[1731689684019,0.25098,210.25,210.2,4.7573]
[1731689684211,0.25098,210.25,210.19,7.5075]
[1731689684412,0.25098,210.25,210.19,43.3207564]
[1731689685230,0.25098,210.25,210.2,23.9192564]
[1731689685424,0.25098,210.25,210.2,4.7573]
[1731689685729,0.25098,210.25,210.19,38.5632564]
[1731689685730,0.25098,210.25,210.19,14.644]
[1731689685922,0.25098,210.23,210.19,11.894]
[1731689686827,0.25098,210.23,210.18,23.9192564]
[1731689687031,0.25098,210.23,210.18,14.93839395]
[1731689687333,0.25098,210.23,210.17,14.93839395]
[1731689687629,0.25098,210.23,210.18,14.93839395]
[1731689688209,0.25098,210.23,210.18,19.69619395]
[1731689688704,0.12549,210.23,210.18,19.69619395]
[1731689688925,3.805,210.25,210.18,19.69619395]
[1731689688926,0.34465462,210.25,210.18,19.69619395]
[1731689689133,0.25098,210.23,210.17,14.93839395]
[1731689689337,0.25098,210.25,210.22,14.93839395]
[1731689689509,0.25098,210.25,210.16,12.84683988]
[1731689689510,0.25098,210.25,210.2,14.93839395]
[1731689689835,0.25098,210.25,210.19,14.93839395]
[1731689690044,0.25098,210.25,210.2,14.93839395]
[1731689690335,0.25098,210.25,210.19,4.7574]
[1731689690922,0.25098,210.25,210.18,14.93839395]
[1731689691118,4.05608,210.25,210.18,4.7577]
[1731689691522,0.12549,210.25,210.19,14.93839395]
[1731689691727,0.12549,210.25,210.2,14.93839395]
[1731689691928,0.4811857,210.26,210.21,14.93839395]